bitfinex/quotes_SOLUSD_20251204
["timestamp","ask_amount","ask_price","bid_price","bid_amount"]
[1764862011757,7.84,142.42,142.38,8.37758541]
[1764862011976,7.84,142.42,142.4,7.68758541]
[1764862012274,7.84,142.42,142.41,7.68758541]
[1764862012484,7.84,142.43,142.41,8.37758541]
[1764862012676,7.84,142.43,142.42,0.69]
[1764862012872,7.84,142.43,142.41,7.68758541]
[1764862013071,7.84,142.43,142.42,7.68758541]
[1764862013387,7.84,142.47,142.42,8.37758541]
[1764862013574,17.54450121,142.5,142.45,7.68758541]
[1764862013771,24.5510662,142.56,142.49,7.68758541]
[1764862013971,8.80994492,142.53,142.49,7.68758541]
[1764862014170,7.68758541,142.52,142.46,0.69]
[1764862014470,16.49753033,142.51,142.46,0.69]
[1764862014784,8.80994492,142.51,142.46,8.37758541]
[1764862014980,17.18753033,142.51,142.46,8.37758541]
[1764862015156,17.18753033,142.51,142.33,0.1]
[1764862015157,1.99999999,142.45,142.33,0.1]
[1764862015363,5.83157015,142.41,142.33,0.1]
[1764862015578,8.60239516,142.44,142.36,7.68758541]
[1764862015889,7.68758541,142.42,142.34,8.80994492]
[1764862016082,7.68758541,142.39,142.33,0.1]
[1764862016269,7.92,142.38,142.33,7.12578686]
[1764862016580,16.308864,142.42,142.34,7.68758541]
[1764862016581,7.92,142.4,142.34,7.68758541]
[1764862017281,15.60758541,142.4,142.35,0.69]
[1764862017780,15.60758541,142.4,142.36,7.02444506]
[1764862018283,7.68758541,142.39,142.37,0.69]
[1764862018483,16.49753033,142.45,142.38,7.68758541]
[1764862018777,16.49753033,142.45,142.37,0.69]
[1764862018778,0.70239516,142.44,142.37,0.69]
[1764862019086,7.68758541,142.4,142.37,0.69]
[1764862019278,7.68758541,142.4,142.36,16.308864]
[1764862019467,8.62239516,142.42,142.36,16.998864]
[1764862019663,14.71043804,142.4,142.36,16.998864]
[1764862019984,7.92,142.39,142.34,7.7149896]
[1764862020163,7.92,142.39,142.35,16.998864]
[1764862020370,7.92,142.41,142.36,7.0242979]
[1764862020571,7.68758541,142.41,142.36,7.7142979]
[1764862020772,7.92,142.41,142.37,0.69]
[1764862021567,16.31758541,142.41,142.35,23.3336923]
[1764862021788,7.68758541,142.39,142.35,0.69]
[1764862022165,7.68758541,142.36,142.33,0.79]
[1764862022484,7.92,142.38,142.33,0.1]
[1764862022788,7.68758541,142.38,142.34,7.71504732]
[1764862023165,7.68758541,142.38,142.35,7.71492714]
[1764862023484,23.33240311,142.41,142.35,7.71492714]
[1764862023682,23.33240311,142.41,142.36,7.71416383]
[1764862023683,7.68758541,142.4,142.36,7.71416383]
[1764862023889,7.68758541,142.39,142.36,0.69]
[1764862024274,7.68758541,142.4,142.36,0.69]
[1764862024477,7.68758541,142.4,142.34,24.68644941]
[1764862024478,7.68758541,142.39,142.34,24.68644941]
[1764862024677,8.80994492,142.4,142.35,7.02489827]
[1764862024885,16.49753033,142.4,142.35,7.02489827]
[1764862025079,17.20753033,142.4,142.35,7.02489827]
[1764862025288,33.19976468,142.41,142.35,14.71248368]
[1764862025589,7.68758541,142.4,142.35,7.02489827]
[1764862025770,7.68758541,142.38,142.34,24.0242225]
[1764862025969,15.60758541,142.38,142.34,24.0242225]
[1764862026391,0.71,142.4,142.35,8.37758541]
[1764862026392,7.02262054,142.4,142.35,8.37758541]
[1764862026584,0.70239516,142.41,142.37,7.68758541]
[1764862026783,0.70239516,142.42,142.38,7.68758541]
[1764862027090,7.92,142.41,142.38,7.68758541]
[1764862027391,7.92,142.41,142.38,8.37758541]
[1764862027593,7.92,142.41,142.38,7.68758541]
[1764862027788,7.92,142.41,142.39,0.69]
[1764862028001,7.92,142.41,142.39,7.71293219]
[1764862028291,7.92,142.41,142.39,0.69]
[1764862028490,0.70239516,142.4,142.37,23.33268996]
[1764862028666,0.70239516,142.4,142.36,14.71199794]
[1764862028870,1.41239516,142.4,142.35,14.71239758]
[1764862029080,9.09998057,142.4,142.35,14.71239758]
[1764862029288,0.70239516,142.4,142.36,7.71441656]
[1764862029495,8.38998057,142.4,142.36,7.71441656]
[1764862029692,7.68758541,142.38,142.33,0.79]
[1764862029893,16.30998057,142.38,142.33,8.47758541]
[1764862030079,8.62239516,142.38,142.34,0.69]
[1764862030280,16.30998057,142.38,142.34,0.69]
[1764862030483,8.62239516,142.38,142.34,8.37758541]
[1764862030680,8.62239516,142.38,142.33,7.12578268]
[1764862030882,8.62239516,142.38,142.33,7.12577188]
[1764862031088,8.62239516,142.38,142.34,7.68758541]
[1764862031289,9.33239516,142.38,142.34,7.68758541]
[1764862031793,15.64603182,142.38,142.34,14.7129751]
[1764862031980,15.64603182,142.38,142.34,15.4029751]
[1764862032301,24.04361723,142.38,142.33,14.813331]
[1764862032480,24.04361723,142.38,142.33,15.503331]
[1764862033187,15.64603182,142.38,142.34,15.43294164]
[1764862033392,0.70239516,142.38,142.35,7.68758541]
[1764862033579,0.70239516,142.38,142.35,8.40758541]
[1764862033774,0.70239516,142.38,142.35,15.43242022]
[1764862033998,0.70239516,142.38,142.36,7.68758541]
[1764862034299,8.60239516,142.4,142.37,7.68758541]
[1764862034601,8.60239516,142.4,142.38,7.68758541]
[1764862035598,0.70239516,142.41,142.39,8.40758541]
[1764862035895,8.60239516,142.43,142.4,7.68758541]
[1764862036476,8.60239516,142.43,142.41,8.40758541]
[1764862036477,7.9,142.43,142.41,8.40758541]
[1764862036700,7.9,142.43,142.42,7.68758541]
[1764862036893,0.70239516,142.44,142.42,7.68758541]
[1764862037096,8.60239516,142.44,142.42,7.68758541]
[1764862037405,0.70239516,142.44,142.43,8.40758541]
[1764862037723,8.60239516,142.46,142.43,15.42857817]
[1764862037886,8.60239516,142.46,142.43,7.68758541]
[1764862038082,8.60239516,142.46,142.44,7.68758541]
[1764862038306,0.70239516,142.47,142.45,7.68758541]
[1764862038480,0.70239516,142.48,142.46,7.68758541]
[1764862038696,8.60239516,142.48,142.46,7.68758541]
[1764862038883,8.60239516,142.48,142.45,7.68758541]
[1764862039297,8.60239516,142.48,142.43,7.74092411]
[1764862039298,8.60239516,142.48,142.46,7.68758541]
[1764862039539,8.60239516,142.48,142.45,0.72]
[1764862039703,8.60239516,142.48,142.46,7.68758541]
[1764862040004,16.30095068,142.48,142.44,7.68758541]
[1764862040402,0.68,142.47,142.42,7.74134132]
[1764862040699,33.16727297,142.48,142.44,7.68758541]
[1764862040700,0.70239516,142.46,142.44,7.68758541]
[1764862041513,0.70239516,142.47,142.43,7.02085582]
[1764862041810,0.70239516,142.47,142.44,7.68758541]
[1764862042102,0.70239516,142.47,142.43,0.72]
[1764862043091,0.70239516,142.47,142.45,7.68758541]
[1764862043512,7.72145009,142.47,142.44,7.68758541]
[1764862044507,0.70239516,142.47,142.45,7.68758541]
[1764862044806,0.70239516,142.47,142.44,7.68758541]
[1764862044807,7.72146432,142.47,142.44,7.68758541]
[1764862045798,15.62146432,142.47,142.44,7.68758541]
[1764862047205,15.62146432,142.47,142.45,7.68758541]
[1764862047386,7.9,142.47,142.46,7.68758541]
[1764862047589,7.9,142.47,142.45,7.68758541]
[1764862047792,7.9,142.47,142.45,8.40758541]
[1764862047991,7.9,142.47,142.46,7.68758541]
[1764862048321,0.70239516,142.49,142.46,8.40758541]
[1764862048519,8.60239516,142.49,142.47,7.68758541]
[1764862049610,8.60239516,142.49,142.47,15.42654986]
[1764862049811,8.60239516,142.49,142.47,7.68758541]
[1764862050110,16.3004443,142.49,142.46,7.68758541]
[1764862050314,15.6204443,142.49,142.45,7.68758541]
[1764862050499,33.84553518,142.49,142.45,7.68758541]
[1764862050700,15.6204443,142.49,142.45,8.40758541]
[1764862051015,33.16553518,142.49,142.45,8.40758541]
[1764862051219,33.84553518,142.49,142.45,8.40758541]
[1764862051602,33.84553518,142.49,142.45,0.72]
[1764862051808,8.36758541,142.48,142.43,7.68758541]
[1764862052000,9.51234008,142.47,142.43,7.68758541]
[1764862052317,7.88,142.46,142.41,0.72]
[1764862052494,0.70239516,142.45,142.41,15.42948742]
[1764862052691,1.38239516,142.45,142.41,7.68758541]
[1764862052910,9.06998057,142.45,142.39,7.74267901]
[1764862053114,24.57347468,142.43,142.38,8.40758541]
[1764862053316,7.88,142.42,142.39,7.68758541]
[1764862053519,7.88,142.42,142.38,7.68758541]
[1764862053520,8.56,142.42,142.38,7.68758541]
[1764862053709,0.68,142.41,142.37,7.68758541]
[1764862054016,0.68,142.41,142.38,7.68758541]
[1764862054221,7.88,142.42,142.38,7.68758541]
[1764862054560,8.56,142.42,142.38,11.91093507]
[1764862054909,7.88,142.42,142.38,12.63093507]
[1764862055328,7.02197879,142.41,142.38,12.63093507]
[1764862055508,7.02197879,142.41,142.38,0.72]
[1764862055709,14.90164221,142.42,142.38,19.6543511]
[1764862056111,14.90164221,142.42,142.38,0.72]
[1764862057212,26.81257728,142.42,142.37,18.93471487]
[1764862057413,0.68,142.41,142.37,18.93471487]
[1764862057609,27.49257728,142.42,142.38,0.72]
[1764862057926,27.49257728,142.42,142.37,19.65471487]
[1764862058235,27.49257728,142.42,142.33,16.408864]
[1764862058236,11.91093507,142.39,142.33,0.1]
[1764862058397,11.91093507,142.39,142.34,12.63093507]
[1764862058398,16.68994492,142.38,142.34,12.63093507]
[1764862058606,16.68994492,142.38,142.35,0.72]
[1764862058810,7.88,142.38,142.35,12.63093507]
[1764862059106,7.88,142.38,142.35,0.72]
[1764862060031,7.88,142.38,142.35,7.74491623]
[1764862060604,7.88,142.38,142.36,0.72]
[1764862061108,7.88,142.38,142.36,12.63093507]
[1764862061312,14.90258329,142.4,142.36,12.63093507]
[1764862061512,14.90258329,142.4,142.36,11.91093507]
[1764862061709,14.90258329,142.4,142.37,0.72]
[1764862063913,14.90258329,142.4,142.34,0.66]
[1764862063914,21.43087999,142.39,142.34,0.66]
[1764862064107,11.91093507,142.38,142.33,19.03654658]
[1764862064312,7.88,142.37,142.33,19.69654658]
[1764862064539,7.88,142.37,142.34,0.66]
[1764862064921,14.90410103,142.37,142.34,0.66]
[1764862065421,14.90410103,142.37,142.33,19.03654658]
[1764862065422,27.5250361,142.37,142.33,0.1]
[1764862065814,26.8150361,142.37,142.33,0.76]
[1764862066329,45.08491528,142.37,142.33,0.1]
[1764862067213,11.91093507,142.36,142.33,0.1]
[1764862067420,45.08491528,142.37,142.33,0.1]
[1764862068128,7.02493853,142.35,142.33,0.1]
[1764862069236,20.50093507,142.34,142.33,0.1]
[1764862069568,19.79093507,142.34,142.33,0.1]
[1764862069735,7.88,142.34,142.33,0.76]
[1764862069915,7.88,142.34,142.33,0.1]
[1764862070235,14.90543206,142.34,142.33,0.1]
[1764862072236,15.60782722,142.34,142.33,0.1]
[1764862072829,37.03870721,142.34,142.33,0.1]
[1764862074235,37.03870721,142.34,142.33,1e-08]
[1764862074824,25.12777214,142.34,142.33,1e-08]
[1764862075038,37.03870721,142.34,142.33,1e-08]
[1764862075420,37.03870721,142.34,142.32,1e-08]
[1764862075624,21.43087999,142.33,142.32,1e-08]
[1764862076142,28.45680565,142.33,142.32,1e-08]
[1764862076437,36.31680565,142.33,142.32,1e-08]
[1764862076814,52.62566965,142.33,142.32,1e-08]
[1764862078128,36.31680565,142.33,142.32,1e-08]
[1764862081129,28.45680565,142.33,142.32,1e-08]
[1764862081324,36.31680565,142.33,142.32,1e-08]
[1764862082049,57.53161475,142.33,142.32,1e-08]
[1764862082630,45.62067968,142.33,142.32,1e-08]
[1764862082941,57.53161475,142.33,142.32,1e-08]
[1764862083246,37.76067968,142.33,142.32,1e-08]
[1764862083537,36.31680565,142.33,142.32,1e-08]
[1764862084350,7.02592566,142.33,142.32,1e-08]
[1764862084589,26.79686073,142.33,142.32,1e-08]
[1764862084727,14.88592566,142.33,142.32,1e-08]
[1764862085118,52.62566965,142.33,142.32,1e-08]
[1764862085417,31.19478966,142.33,142.32,1e-08]
[1764862085745,7.72797155,142.34,142.32,0.66000001]
[1764862085927,7.86,142.33,142.32,0.66000001]
[1764862086130,7.02511183,142.35,142.32,12.57093508]
[1764862086131,0.70239516,142.35,142.32,12.57093508]
[1764862086350,0.70239516,142.35,142.33,0.66]
[1764862086641,0.70239516,142.35,142.33,12.57093507]
[1764862087145,0.70239516,142.35,142.34,12.57093507]
[1764862087445,7.86,142.36,142.34,12.57093507]
[1764862087632,7.86,142.36,142.35,12.57093507]
[1764862088020,7.86,142.38,142.35,12.57093507]
[1764862088220,7.86,142.38,142.37,11.91093507]
[1764862088434,7.72497499,142.4,142.37,11.91093507]
[1764862088634,8.56239516,142.4,142.38,0.66]
[1764862088851,15.58507102,142.4,142.38,0.66]
[1764862089234,0.70239516,142.4,142.38,12.57093507]
[1764862089432,8.56239516,142.41,142.39,12.57093507]
[1764862089855,8.56239516,142.41,142.4,0.66]
[1764862090033,0.70239516,142.41,142.4,12.57093507]
[1764862090238,0.70239516,142.44,142.4,12.57093507]
[1764862090447,0.70239516,142.44,142.42,11.91093507]
[1764862090954,8.56239516,142.45,142.43,12.57093507]
[1764862091157,24.87125916,142.45,142.43,0.66]
[1764862091341,0.70239516,142.47,142.44,12.57093507]
[1764862091544,29.45513949,142.5,142.44,12.57093507]
[1764862091545,7.72043151,142.49,142.46,11.91093507]
[1764862091748,7.86,142.48,142.46,11.91093507]
[1764862092076,0.70239516,142.47,142.46,12.57093507]
[1764862092756,0.70239516,142.47,142.46,0.66]
[1764862095161,0.70239516,142.49,142.46,12.57093507]
[1764862095363,15.58008854,142.5,142.47,12.61093507]
[1764862095567,15.58008854,142.5,142.47,0.7]
[1764862095742,15.58008854,142.5,142.48,0.7]
[1764862097955,0.70239516,142.5,142.48,0.7]
[1764862098159,0.70239516,142.5,142.48,12.61093507]
[1764862098462,0.90239516,142.53,142.49,18.9287142]
[1764862098657,0.90239516,142.53,142.51,11.91093507]
[1764862098658,8.76239516,142.53,142.51,11.91093507]
[1764862099068,8.76239516,142.53,142.52,0.7]
[1764862099269,15.77846195,142.53,142.52,0.7]
[1764862099854,0.2,142.53,142.52,0.7]
[1764862100060,0.2,142.53,142.52,12.61093507]
[1764862101251,0.2,142.53,142.52,19.62749414]
[1764862101445,0.2,142.53,142.52,12.61093507]
[1764862101667,0.2,142.53,142.52,0.7]
[1764862102874,0.2,142.53,142.52,12.61093507]
[1764862103082,0.2,142.53,142.52,0.7]
[1764862103286,0.2,142.53,142.52,12.61093507]
[1764862103575,0.2,142.53,142.52,19.62749414]
[1764862103770,0.2,142.55,142.52,19.62749414]
[1764862103977,0.2,142.55,142.53,0.7]
[1764862104358,0.2,142.55,142.53,12.61093507]
[1764862104570,0.2,142.55,142.54,11.91093507]
[1764862104871,0.2,142.55,142.54,0.7]
[1764862105079,0.2,142.55,142.52,0.7]
[1764862105376,7.91747758,142.55,142.53,0.7]
[1764862105550,7.91747758,142.55,142.52,0.7]
[1764862105870,7.91747758,142.55,142.51,0.7]
[1764862105871,20.50841265,142.55,142.51,0.7]
[1764862106072,25.45518364,142.55,142.51,0.7]
[1764862106670,7.91747758,142.55,142.51,12.61093507]
[1764862107271,7.86,142.54,142.52,0.7]
[1764862108362,7.86,142.54,142.5,0.7]
[1764862108563,13.29333023,142.53,142.47,0.7]
[1764862108753,11.91093507,142.51,142.47,0.7]
[1764862108958,14.85754385,142.5,142.45,19.63076047]
[1764862109169,14.85754385,142.5,142.46,0.7]
[1764862109374,26.76847892,142.5,142.46,0.7]
[1764862110155,44.31233856,142.5,142.44,19.63123579]
[1764862110478,20.72087999,142.49,142.44,12.61093507]
[1764862110675,7.01754385,142.5,142.46,11.91093507]
[1764862110851,7.84,142.49,142.46,11.91093507]
[1764862111048,7.84,142.49,142.47,0.7]
[1764862111974,14.85816672,142.49,142.44,12.61093507]
[1764862112277,14.85816672,142.49,142.44,18.93107688]
[1764862112476,14.85816672,142.49,142.45,0.7]
[1764862112865,27.44910179,142.49,142.44,18.93107688]
[1764862113066,27.44910179,142.49,142.45,0.7]
[1764862113263,26.76910179,142.49,142.45,0.7]
[1764862113467,26.76910179,142.49,142.41,41.70337968]
[1764862113468,12.59093507,142.48,142.42,0.7]
[1764862113778,0.68,142.48,142.43,11.91093507]
[1764862113980,11.91093507,142.48,142.43,11.91093507]
[1764862114162,11.91093507,142.48,142.44,0.7]
[1764862114352,7.01816672,142.49,142.46,7.68801616]
[1764862114553,14.85816672,142.49,142.46,7.68801616]
[1764862114759,7.84,142.49,142.47,0.7]
[1764862114966,16.20801616,142.49,142.44,8.38801616]
[1764862115259,16.20801616,142.49,142.41,24.148864]
[1764862115260,7.68801616,142.47,142.42,0.7]
[1764862115460,7.84,142.46,142.43,7.68801616]
[1764862115776,7.84,142.46,142.42,8.38801616]
[1764862115974,7.68801616,142.48,142.43,15.40895563]
[1764862116153,17.54509088,142.49,142.44,8.38801616]
[1764862116154,7.84,142.47,142.44,8.38801616]
[1764862116773,7.84,142.48,142.44,8.38801616]
[1764862116972,14.8589531,142.48,142.44,14.70845808]
[1764862117163,14.8589531,142.48,142.45,8.38801616]
[1764862117565,14.8589531,142.48,142.46,0.7]
[1764862118585,14.8589531,142.48,142.44,15.40845808]
[1764862118786,14.8589531,142.48,142.45,0.7]
[1764862119881,7.84,142.48,142.46,7.68801616]
[1764862120090,7.84,142.5,142.47,8.38801616]
[1764862120383,0.70239516,142.51,142.48,7.68801616]
[1764862120573,7.01672465,142.52,142.49,7.68801616]
[1764862120774,7.71911981,142.52,142.49,8.38801616]
[1764862121181,7.71911981,142.52,142.5,7.68801616]
[1764862121575,7.71911981,142.52,142.5,8.38801616]
[1764862122095,7.71911981,142.52,142.49,7.68801616]
[1764862122286,7.71911981,142.52,142.49,8.35801616]
[1764862123184,7.71911981,142.52,142.49,0.67]
[1764862123502,7.71911981,142.52,142.5,7.68801616]
[1764862123700,0.69,142.51,142.48,7.68801616]
[1764862123862,0.70239516,142.5,142.48,7.68801616]
[1764862124067,0.70239516,142.5,142.48,8.38801616]
[1764862125403,9.51234008,142.5,142.45,7.68801616]
[1764862125576,7.01803635,142.49,142.44,7.02044638]
[1764862125780,8.54239516,142.48,142.46,7.68801616]
[1764862126199,7.84,142.48,142.47,0.7]
[1764862126689,7.72043151,142.49,142.47,8.38801616]
[1764862126890,7.72007218,142.5,142.48,7.68801616]
[1764862127101,7.72007218,142.5,142.47,0.7]
[1764862127102,15.56007218,142.5,142.47,0.7]
[1764862127272,15.56007218,142.5,142.47,8.38801616]
[1764862127471,15.55906028,142.52,142.49,7.68801616]
[1764862127783,15.55906028,142.52,142.5,7.68801616]
[1764862128591,7.84,142.52,142.51,8.38801616]
[1764862128970,14.85655907,142.52,142.51,7.68801616]
[1764862129267,7.84,142.52,142.51,8.38801616]
[1764862129464,14.85655907,142.52,142.51,0.7]
[1764862130394,7.84,142.52,142.51,0.7]
[1764862132874,7.84,142.52,142.51,8.38801616]
[1764862133383,15.55819459,142.54,142.51,8.38801616]
[1764862133586,8.54239516,142.54,142.51,7.71700394]
[1764862133890,15.55805174,142.54,142.51,8.38801616]
[1764862134274,8.54239516,142.54,142.53,7.68801616]
[1764862134497,8.54239516,142.54,142.52,8.38801616]
[1764862134685,8.54239516,142.54,142.53,7.68801616]
[1764862134885,8.54239516,142.54,142.53,8.38801616]
[1764862135389,8.54239516,142.54,142.53,7.68801616]
[1764862136098,15.55796973,142.54,142.53,7.68801616]
[1764862136403,8.54239516,142.54,142.53,7.68801616]
[1764862137399,8.54239516,142.54,142.53,8.38801616]
[1764862137598,0.2,142.55,142.53,8.38801616]
[1764862137894,0.2,142.55,142.54,7.68801616]
[1764862138108,7.90512995,142.55,142.5,0.7]
[1764862138282,26.14523117,142.55,142.51,7.68801616]
[1764862138485,26.14523117,142.55,142.51,2.86786683]
[1764862138697,26.14523117,142.55,142.51,3.56786683]
[1764862139007,25.45523117,142.55,142.51,2.86786683]
[1764862139208,25.45523117,142.55,142.52,3.56786683]
[1764862139415,7.91752511,142.55,142.52,3.56786683]
[1764862139708,8.60752511,142.55,142.52,2.86786683]
[1764862140009,7.91752511,142.55,142.52,2.86786683]
[1764862140225,0.90239516,142.55,142.54,2.86786683]
[1764862140375,0.2,142.55,142.54,2.86786683]
[1764862140713,0.2,142.55,142.54,3.56786683]
[1764862140999,0.2,142.55,142.54,19.87673083]
[1764862141211,15.55472516,142.61,142.58,2.86786683]
[1764862141410,7.84,142.61,142.6,9.88048955]
[1764862141606,0.2,142.63,142.6,10.58048955]
[1764862141803,0.2,142.63,142.62,2.86786683]
[1764862142383,0.2,142.63,142.62,7.66999529]
[1764862143103,7.21114772,142.63,142.62,7.66999529]
[1764862143490,0.2,142.63,142.62,7.66999529]
[1764862143884,0.2,142.63,142.62,8.36999529]
[1764862144089,0.2,142.63,142.62,15.38163461]
[1764862144299,0.2,142.63,142.62,7.66999529]
[1764862144499,7.21114772,142.63,142.61,7.66999529]
[1764862144704,7.21114772,142.63,142.61,8.36999529]
[1764862145003,0.2,142.63,142.62,8.36999529]
[1764862145204,0.2,142.63,142.62,0.7]
[1764862145407,0.2,142.63,142.62,8.36999529]
[1764862146110,0.2,142.63,142.62,7.66999529]
[1764862146407,0.2,142.63,142.62,8.36999529]
[1764862146604,0.2,142.63,142.58,16.308864]
[1764862146605,7.21116216,142.63,142.59,7.01299799]
[1764862146904,0.2,142.63,142.62,7.66999529]
[1764862147105,7.21114772,142.63,142.62,7.66999529]
[1764862148295,7.21114772,142.63,142.61,7.66999529]
[1764862148609,1.39239516,142.62,142.59,7.66999529]
[1764862149710,7.01262272,142.6,142.59,7.66999529]
[1764862149891,14.85262272,142.6,142.58,7.66999529]
[1764862150091,15.55472617,142.61,142.59,7.66999529]
[1764862150287,15.55472617,142.61,142.6,7.66999529]
[1764862150288,0.70239516,142.61,142.6,7.66999529]
[1764862150487,8.04,142.63,142.6,7.66999529]
[1764862150688,15.05117543,142.63,142.61,7.66999529]
[1764862151116,1.39239516,142.62,142.58,7.66999529]
[1764862151302,1.39239516,142.62,142.58,0.7]
[1764862151502,1.39239516,142.62,142.59,7.66999529]
[1764862152012,8.40446733,142.62,142.59,7.66999529]
[1764862152312,15.55446733,142.62,142.6,7.66999529]
[1764862152698,0.70239516,142.62,142.61,7.66999529]
[1764862152903,7.84,142.62,142.61,7.66999529]
[1764862153115,9.21239516,142.62,142.56,0.67]
[1764862153315,9.21239516,142.62,142.58,7.66999529]
[1764862153619,9.21239516,142.62,142.58,0.67]
[1764862154014,7.01213098,142.61,142.58,8.33999529]
[1764862154208,7.68213098,142.61,142.57,7.66999529]
[1764862154519,7.68213098,142.61,142.55,7.66999529]
[1764862154520,17.14994021,142.6,142.55,7.66999529]
[1764862154821,7.84,142.59,142.57,7.66999529]
[1764862155528,7.71452614,142.61,142.57,0.67]
[1764862155689,7.01213098,142.61,142.57,8.33999529]
[1764862155893,7.84,142.6,142.58,7.66999529]
[1764862156096,23.19279586,142.6,142.55,8.33999529]
[1764862156298,40.72435266,142.6,142.55,8.33999529]
[1764862156510,8.33999529,142.59,142.53,7.01585729]
[1764862156694,8.33999529,142.59,142.54,0.67]
[1764862156695,7.66999529,142.59,142.54,0.67]
[1764862156907,8.33999529,142.59,142.54,8.33999529]
[1764862157216,8.33999529,142.59,142.54,15.35554075]
[1764862157407,8.33999529,142.59,142.55,0.67]
[1764862157596,0.67,142.58,142.54,8.33999529]
[1764862157803,8.33999529,142.58,142.54,0.67]
[1764862158000,14.85409833,142.57,142.54,0.67]
[1764862158525,14.85409833,142.57,142.54,8.33999529]
[1764862158898,14.85409833,142.57,142.51,33.85103761]
[1764862159216,40.72933946,142.57,142.52,8.33999529]
[1764862159420,40.72933946,142.57,142.53,7.66999529]
[1764862159421,33.05934417,142.57,142.53,7.66999529]
[1764862159655,14.85409833,142.57,142.53,15.35598097]
[1764862159797,9.51234008,142.6,142.48,7.84]
[1764862159798,8.38530467,142.6,142.56,7.66999529]
[1764862159995,8.38530467,142.6,142.57,7.66999529]
[1764862160195,0.70239516,142.6,142.57,7.66999529]
[1764862160397,7.84,142.61,142.58,8.33999529]
[1764862160800,0.70239516,142.62,142.59,8.33999529]
[1764862160996,8.54239516,142.62,142.59,8.33999529]
[1764862161729,15.55408764,142.62,142.59,8.33999529]
[1764862161905,16.22408764,142.62,142.58,7.66999529]
[1764862162111,16.22408764,142.62,142.58,8.33999529]
[1764862162112,15.55408764,142.62,142.58,8.33999529]
[1764862163431,15.55408764,142.62,142.58,15.35344752]
[1764862165329,15.55408764,142.62,142.58,7.68345223]
[1764862165500,15.55408764,142.62,142.58,15.35344752]
[1764862166624,15.55408764,142.62,142.59,8.33999529]
[1764862166826,7.71408764,142.62,142.58,7.01345223]
[1764862167009,15.55408764,142.62,142.58,15.35344752]
[1764862167209,15.55408764,142.62,142.58,14.68344752]
[1764862167409,15.55408764,142.62,142.59,8.33999529]
[1764862167633,15.55408764,142.62,142.59,0.67]
[1764862167836,15.55408764,142.62,142.59,8.33999529]
[1764862168024,15.75356018,142.63,142.6,8.33999529]
[1764862168408,7.91356018,142.63,142.6,8.33999529]
[1764862168603,8.04,142.63,142.61,8.33999529]
[1764862168928,8.04,142.63,142.6,8.33999529]
[1764862169707,8.04,142.63,142.61,7.66999529]
[1764862171235,8.04,142.63,142.61,15.35210486]
[1764862171435,8.71,142.63,142.6,14.6823969]
[1764862171634,8.04,142.63,142.6,14.6823969]
[1764862171834,8.04,142.63,142.6,15.3523969]
[1764862172128,8.04,142.63,142.61,7.66999529]
[1764862173013,8.04,142.63,142.61,14.68209637]
[1764862173239,8.04,142.63,142.61,0.67]
[1764862173426,15.05114808,142.63,142.59,7.68292402]
[1764862173626,15.05114808,142.63,142.6,8.33999529]
[1764862174663,15.05114808,142.63,142.6,12.54394756]
[1764862175639,15.05114808,142.63,142.59,7.01284598]
[1764862175828,1.37239516,142.62,142.57,7.01381355]
[1764862176032,13.24634272,142.62,142.57,7.01381355]
[1764862176221,7.68213098,142.61,142.57,7.01381355]
[1764862176541,7.84,142.6,142.56,18.88836104]
[1764862177019,7.84,142.6,142.56,19.55836104]
[1764862177222,8.51,142.6,142.56,19.55836104]
[1764862177425,15.52295121,142.6,142.56,7.68441348]
[1764862177621,0.67,142.59,142.54,7.01513067]
[1764862177923,0.67,142.59,142.52,11.87394756]
[1764862177924,11.87394756,142.57,142.52,11.87394756]
[1764862178138,19.71394756,142.56,142.51,19.56069324]
[1764862178735,19.71394756,142.56,142.51,11.87394756]
[1764862179045,0.67,142.55,142.51,12.54394756]
[1764862179622,0.67,142.55,142.51,19.56092004]
[1764862180241,7.84,142.56,142.52,11.87394756]
[1764862180439,15.52478352,142.56,142.52,12.54394756]
[1764862180639,7.84,142.55,142.53,0.67]
[1764862180840,7.84,142.56,142.53,12.54394756]
[1764862181625,14.854694,142.56,142.53,0.67]
[1764862182518,14.854694,142.56,142.54,11.87394756]
[1764862182720,14.854694,142.56,142.53,19.55998989]